Cogmind - Beta 13 @@@ ROGUE MODE // 2024.04.25 @ 12:49:14 Player: Barbarossa Result: Destroyed by L-41 Fighter with Backup Laser III Performance ------------- Evolutions (3) 1500 Regions Visited (4) 800 Robots Destroyed (66) 330 Value Destroyed (1961) 1961 Prototype IDs (3) 60 Alien Tech Used (0) 0 Bonus (0) 0 TOTAL SCORE: 4651 Bonus ------- None Cogmind --------- Core Integrity 0/700 Matter 67/300 Energy 42/100 System Corruption 14% Temperature Cool (9) Movement Core (1350) Ox26 Location -7/Factory Parts ------- > --- POWER (1) -------- (None) > --- PROPULSION (4) --- (None) > --- UTILITY (6) ------ Huge Storage Unit Advanced Visual Processing Unit > --- WEAPON (2) ------- (None) > --- INVENTORY (25) --- Armored Treads High-capacity Battery (250) High-capacity Matter Pod (200) Improved Sensor Array Active Sensor Suite Kinecellerator Weapon Cycler Improved Field Recycling Unit (0) Peak State ------------ > --- POWER ------------ Reinforced Ion Engine > --- PROPULSION ------- Armored Treads Armored Treads Compact Wheel Compact Wheel > --- UTILITY ---------- Improved Cooling System Huge Storage Unit Advanced Visual Processing Unit Heavy Armor Plating Component Analysis Suite > --- WEAPON ----------- Heavy Assault Cannon > --- INVENTORY -------- Improved Deuterium Engine Improved Deuterium Engine Armored Treads Armored Treads Armored Treads Compact Wheel Compact Wheel Cooling System High-capacity Battery High-capacity Matter Pod Improved Sensor Array Active Sensor Suite Weapon Cycler Hardened Light Armor Plating Improved Light Armor Plating Hacking Suite Improved Field Recycling Unit Gatling Laser Gauss Rifle Flak Gun Assault Cannon Heavy Assault Cannon [Rating: 43] Favorites ----------- Power Reinforced Ion Engine Engine Reinforced Ion Engine Power Core Light Nuclear Core Propulsion Compact Wheel Treads Armored Treads Leg Aluminum Leg Wheel Compact Wheel Utility Huge Storage Unit Device Disposable Heat Sink Storage Huge Storage Unit Processor Advanced Visual Processing Unit Protection Heavy Armor Plating Weapon Particle Gun Energy Gun Particle Gun Ballistic Gun Light Assault Rifle Ballistic Cannon Heavy Assault Cannon Launcher Grenade Launcher Build | -11 -10 -9 -8 -7 ------- Run | Yrd Mat Mat Mat Fac Slots Evolved 6 | . . 2 2 2 Power . | . . . . . Propulsion 2 | . . 2 . . Utility 4 | . . . 2 2 Weapon . | . . . . . Parts Attached 75 | 3 7 17 24 24 Power 5 | . 1 1 1 2 Engine 4 | . . 1 1 2 Core 1 | . 1 . . . Reactor . | . . . . . Propulsion 30 | 2 1 11 10 6 Treads 13 | . . 7 3 3 Leg 1 | . . . 1 . Wheel 16 | 2 1 4 6 3 Hover . | . . . . . Flight . | . . . . . Utility 20 | . 1 3 7 9 Device 13 | . 1 2 4 6 Storage 2 | . . 1 1 . Processor 1 | . . . . 1 Hackware . | . . . . . Protection 4 | . . . 2 2 Artifact . | . . . . . Weapon 20 | 1 4 2 6 7 Energy Gun 11 | 1 3 1 4 2 Energy Cannon . | . . . . . Ballistic Gun 4 | . 1 1 . 2 Ballistic Cannon 4 | . . . 1 3 Launcher 1 | . . . 1 . Special Weapon . | . . . . . Impact Weapon . | . . . . . Slashing Weapon . | . . . . . Piercing Weapon . | . . . . . Special Melee Weapon . | . . . . . Unidentified Prototypes . | . . . . . Parts Lost 27 | . 2 . 3 22 Power 4 | . 1 . . 3 Propulsion 9 | . . . 1 8 Utility 6 | . . . 1 5 Weapon 8 | . 1 . 1 6 Highest Loss Streak 22 | . 1 . 2 22 To Critical Strikes 2 | . . . . 2 Average Slot Usage (%) 91 | . 92 98 96 79 Engine 7 | . 8 6 9 6 Core 1 | . 1 4 . . Treads 14 | . . 22 18 14 Wheel 18 | . 28 20 17 13 Device 15 | . 10 11 20 14 Storage 9 | . 14 11 9 7 Processor 1 | . . . . 5 Protection 3 | . . . 4 6 Energy Gun 10 | . 17 13 15 . Ballistic Gun 3 | . 10 8 . . Ballistic Cannon 2 | . . . . 6 Naked Turns . | . . . . . Heaviest Build 121 | 13 15 27 106 121 Greatest Support 32 | 20 26 32 32 32 Greatest Overweight (x) 3 | . . 1 3 3 Average Overweight (x) 1 | . . . 1 2 Largest Inventory Capacity 25 | 8 8 10 25 25 Average Capacity 16 | 8 8 8 16 25 Most Carried 25 | 6 8 10 25 25 Average Carried 14 | 4 6 8 13 23 Final Capacity 25 | 8 8 10 25 25 Final Carried 25 | 3 8 10 25 10 Class Distribution -------------------- 73% | Scavenger-Mutant 26% | Mutant Dominant Class ---------------- Mutant | -10/Materials Scavenger-Mutant | -9/Materials Scavenger-Mutant | -8/Materials Scavenger-Mutant | -7/Factory Resources | -11 -10 -9 -8 -7 ----------- Run | Yrd Mat Mat Mat Fac Matter Collected 1430 | 200 334 262 323 311 Remotely . | . . . . . Salvage Created 2909 | . 471 824 1027 587 Parts 135 | . 22 31 47 35 Haulers Intercepted 5 | . 2 2 . 1 Recyclers Shooed 9 | . . 5 4 . Parts Field Recycled . | . . . . . Retrieved Matter . | . . . . . Parts Self-Destructed . | . . . . . Prevented . | . . . . . Kills | -11 -10 -9 -8 -7 ------- Run | Yrd Mat Mat Mat Fac Combat Hostiles Destroyed 43 | . 8 9 12 14 Guns 31 | . 8 9 9 5 Cannons 9 | . . . . 9 AOE 3 | . . . 3 . Classes Destroyed 11 | . 5 2 2 2 Builder 3 | . . . 1 2 Hauler 5 | . 2 2 . 1 Recycler 12 | . 1 4 6 1 Watcher 3 | . 1 1 . 1 Swarmer 6 | . 3 . 3 . Grunt 17 | . 5 6 3 3 Brawler 2 | . . 1 1 . Sentry 8 | . . 2 4 2 Specialist 1 | . . . . 1 Hunter 5 | . . . 1 4 Programmer 4 | . . . . 4 Best Kill Streak 5 | . 3 5 4 5 Combat Bots Only 5 | . 3 4 4 5 Max Kills in Single Turn 3 | . 1 1 3 2 Gunslinging . | . . . . . Exploded 3 | . . . 3 . Melee . | . . . . . Uniques/NPCs Destroyed . | . . . . . Combat | -11 -10 -9 -8 -7 -------- Run | Yrd Mat Mat Mat Fac Hostile Shots Fired 559 | . 56 52 70 381 Missed 160 | . 12 16 26 106 Damage Taken 5834 | . 471 448 698 4217 Core 996 | . 142 94 59 701 Absorbed by Shields . | . . . . . Regen/Repaired (Parts) 48 | . . 48 . . Core Remaining (%) 77 | 100 43 76 89 . Volleys Fired 240 | . 52 56 69 63 Largest 2 | . 2 2 2 2 Hottest 160 | . 85 88 121 160 Shots Fired 389 | . 99 112 104 74 Gun 337 | . 99 112 99 27 Cannon 47 | . . . . 47 Launcher 5 | . . . 5 . Special . | . . . . . Kinetic 144 | . 33 56 . 55 Thermal 240 | . 66 56 99 19 Explosive 5 | . . . 5 . Electromagnetic . | . . . . . Robot Hit Streak 15 | . 7 15 13 15 Robot Miss Streak 4 | . 4 3 4 2 Penetration Max . | . . . . . Secondary Targets 7 | . 1 4 1 1 Max Gunslinging Chain 1 | . 1 1 1 1 Shots Hit Robots 267 | . 60 72 75 60 Core Hits 147 | . 21 29 43 54 Critical Kills 1 | . . 1 . . Critical Parts Destroyed . | . . . . . Critical Strikes 6 | . . 1 2 3 Burn 2 | . . . 2 . Destroy 1 | . . 1 . . Blast 3 | . . . . 3 Melee Attacks . | . . . . . Impact . | . . . . . Slashing . | . . . . . Piercing . | . . . . . Sneak Attacks . | . . . . . Combat Hostiles . | . . . . . Follow-up Attacks . | . . . . . Damage Inflicted 5681 | . 715 943 1230 2793 Guns 3348 | . 715 943 971 719 Cannons 1517 | . . . . 1517 Explosions 816 | . . . 259 557 Melee . | . . . . . Ramming . | . . . . . Kinetic 2314 | . 252 398 . 1664 Thermal 2551 | . 463 545 971 572 Explosive 816 | . . . 259 557 Electromagnetic . | . . . . . Impact . | . . . . . Slashing . | . . . . . Piercing . | . . . . . Highest Corruption 14 | . . . 5 14 Average Corruption 5 | . . . 5 8 Corruption Purged . | . . . . . Corruption Blocked . | . . . . . Effects 22 | . . . 16 6 Message Errors 6 | . . . 5 1 Matter Fused 4 | . . . 3 1 Energy Discharges 5 | . . . 4 1 Parts Rejected 1 | . . . . 1 Data Loss (minor) 3 | . . . 3 . Misfires 1 | . . . 1 . Weapon Failures 2 | . . . . 2 Overload Shots . | . . . . . Overflow Damage 70 | . . . . 70 Projectiles 70 | . . . . 70 Explosions . | . . . . . Melee . | . . . . . Knockbacks 9 | . . . . 9 Impact . | . . . . . Kinetic 9 | . . . . 9 Secondary . | . . . . . Self-Inflicted Damage 149 | . . . 38 111 Shots 2 | . . . 1 1 Rammed . | . . . . . Targets Rammed . | . . . . . Kicked . | . . . . . Crushed . | . . . . . Highest Temperature 90 | . 90 45 57 84 Average Temperature 22 | . 39 15 20 19 Received Heat Transfer 921 | . 180 225 171 345 Siege Activations . | . . . . . Robots Corrupted . | . . . . . Combat Hostiles . | . . . . . Parts Fried . | . . . . . Impact Corruptions . | . . . . . Robots Melted . | . . . . . Combat Hostiles . | . . . . . Parts Melted 13 | . 2 1 6 4 Heat Transferred 5670 | . 1049 1295 2522 804 Parts Sabotaged . | . . . . . Parts Stolen . | . . . . . Parts Stripped . | . . . . . Power Chain Reactions . | . . . . . Alert | -11 -10 -9 -8 -7 ------- Run | Yrd Mat Mat Mat Fac Peak Influence 368 | . 244 368 321 246 Initial 102 | . . 102 11 . Average 118 | . 107 182 121 79 Maximum Alert Level 1 | . 1 1 1 1 Low Security (%) 80 | 100 83 54 87 89 Level 1 19 | . 16 45 12 10 Level 2 . | . . . . . Level 3 . | . . . . . Level 4 . | . . . . . Level 5 . | . . . . . High Security . | . . . . . Max Security . | . . . . . Squads Dispatched 16 | . 1 . 8 7 Investigation 5 | . 1 . 2 2 Extermination 1 | . . . . 1 Reinforcement 7 | . . . 3 4 Assault . | . . . . . Garrison 3 | . . . 3 . Intercept . | . . . . . Searches Triggered . | . . . . . Construction Impeded . | . . . . . Haulers Reinforced 1 | . . . . 1 Active Scanning Responses . | . . . . . Cargo Convoy Interrupts 1 | . . . . 1 Stealth | -11 -10 -9 -8 -7 --------- Run | Yrd Mat Mat Mat Fac Distress Signals 8 | . . 2 4 2 Communications Jammed . | . . . . . Distress Signals . | . . . . . Times Spotted 90 | . 13 13 25 39 Peak Tracking Total 15 | . 4 5 7 15 Tactical Retreats 3 | . . . 1 2 Traps | -11 -10 -9 -8 -7 ------- Run | Yrd Mat Mat Mat Fac Traps Triggered . | . . . . . Indirectly . | . . . . . Trap Hack Attempts . | . . . . . Triggered . | . . . . . Disarmed . | . . . . . Reprogrammed . | . . . . . Reused . | . . . . . Traps Extracted . | . . . . . Installed . | . . . . . Triggered . | . . . . . Machines | -11 -10 -9 -8 -7 ---------- Run | Yrd Mat Mat Mat Fac Machines Disabled 3 | . . . . 3 Max in Single Turn 2 | . . . . 2 Machines Repaired . | . . . . . Machines Dismantled . | . . . . . Machines Sabotaged . | . . . . . Overloaded Fab Kills . | . . . . . Hacking | -11 -10 -9 -8 -7 --------- Run | Yrd Mat Mat Mat Fac Machines Accessed 14 | . 4 3 4 3 Terminals 10 | . 4 2 3 1 Fabricators 1 | . . . . 1 Repair Stations 1 | . . 1 . . Recycling Units . | . . . . . Scanalyzers 2 | . . . 1 1 Garrison Access . | . . . . . Total Hacks 57 | . 14 14 18 11 Successful 32 | . 5 9 10 8 Failed 25 | . 9 5 8 3 Catastrophic 3 | . 1 . 1 1 Database Lockouts . | . . . . . Manual 38 | . 11 10 13 4 Terminals 43 | . 14 10 13 6 Fabricators 2 | . . . . 2 Repair Stations 4 | . . 4 . . Recycling Units . | . . . . . Scanalyzers 8 | . . . 5 3 Garrison Access . | . . . . . Terminal Hacks 10 | . 2 3 3 2 Part Schematic 3 | . . 1 1 1 Robot Schematic 1 | . . . . 1 Prototype ID Bank 1 | . 1 . . . Terminal Index 2 | . . 1 1 . Unreport Threat 2 | . . 1 1 . Locate Traps 1 | . 1 . . . Fabricator Hacks 2 | . . . . 2 Load Schematic 1 | . . . . 1 Build 1 | . . . . 1 Repair Station Hacks 4 | . . 4 . . Scan Component 2 | . . 2 . . Repair 2 | . . 2 . . Recycling Unit Hacks . | . . . . . Scanalyzer 7 | . . . 4 3 Insert Component 4 | . . . 2 2 Analyze 3 | . . . 2 1 Garrison Access Hacks . | . . . . . Unauthorized Hacks 9 | . 3 2 3 1 Terminals 9 | . 3 2 3 1 Botnet 9 | . 3 2 3 1 Fabricators . | . . . . . Repair Stations . | . . . . . Recycling Units . | . . . . . Scanalyzers . | . . . . . Garrison Access . | . . . . . Data Cores Recovered . | . . . . . Used . | . . . . . Hacking Detections 13 | . 4 2 4 3 Full Trace Events 4 | . 1 1 1 1 Feedback Events . | . . . . . Feedback Blocked . | . . . . . Robot Schematics Acquired 1 | . . . . 1 Robots Built 1 | . . . . 1 Authchips . | . . . . . Time 58 | . . . . 58 Total Robot Build Rating 3 | . . . . 3 Part Schematics Acquired 5 | . . 1 2 2 Parts Built . | . . . . . Authchips . | . . . . . Time . | . . . . . Total Part Build Rating . | . . . . . Parts Repaired 2 | . . 2 . . Time 52 | . . 52 . . Parts Recycled . | . . . . . Recycled Matter . | . . . . . Retrieved Matter . | . . . . . Retrieved Components . | . . . . . Parts Scanalyzed 3 | . . . 2 1 Part Schematics Acquired 3 | . . . 2 1 Parts Damaged . | . . . . . Bothacking | -11 -10 -9 -8 -7 ------------ Run | Yrd Mat Mat Mat Fac Used RIF Installer . | . . . . . Robots Hacked . | . . . . . Non-combat . | . . . . . Combat . | . . . . . Robot Hacks Applied . | . . . . . Relay Couplers Released . | . . . . . Fabnet Peak Effective % . | . . . . . Robots Rewired . | . . . . . Allies Hacked . | . . . . . Hacks Repelled . | . . . . . Allies | -11 -10 -9 -8 -7 -------- Run | Yrd Mat Mat Mat Fac Total Allies 1 | . . . . 1 Largest Group 1 | . . . . 1 Highest-Rated Group 26 | . . . . 26 Highest-Rated Ally 26 | . . . . 26 Total Orders . | . . . . . Ally Attacks . | . . . . . Total Damage . | . . . . . Kills . | . . . . . Allies Corrupted . | . . . . . Allies Melted . | . . . . . Intel | -11 -10 -9 -8 -7 ------- Run | Yrd Mat Mat Mat Fac Robot Analysis Total . | . . . . . Derelict Logs Recovered . | . . . . . Drone Launches . | . . . . . Drone Recoveries . | . . . . . Exploration | -11 -10 -9 -8 -7 ------------- Run | Yrd Mat Mat Mat Fac Turns Passed 2578 | 7 390 515 884 782 Spaces Moved 1316 | 1 239 234 501 341 Core . | . . . . . Treads . | . . . . . Legs 1 | . . . 1 . Wheels 1315 | 1 239 234 500 341 Hover . | . . . . . Flight . | . . . . . Fastest Speed 80 | 80 80 90 100 130 Average Speed 116 | 80 84 96 121 144 Slowest Speed 190 | 80 90 115 190 145 Overloaded Moves . | . . . . . Propulsion Burnouts . | . . . . . Robots Hopped . | . . . . . Cave-ins Triggered . | . . . . . Exploration Rate (%) 27 | 1 58 22 41 13 Regions Visited 4 Branch Regions . Pre-discovered Areas . | . . . . . Known Exits Taken . | . . . . . Unknown Exits Taken 4 | 1 1 1 1 . Scrap Searched . | . . . . . Spaces Dug . | . . . . . Terrain Destroyed 71 | . . . 37 34 Melee . | . . . . . Projectile 13 | . . . . 13 AOE 58 | . . . 37 21 Terrain Rammed . | . . . . . Walls Destroyed . | . . . . . Machines Disabled . | . . . . . Actions | -11 -10 -9 -8 -7 --------- Run | Yrd Mat Mat Mat Fac Total 1975 | 6 329 423 681 536 Wait 217 | . 19 92 32 74 Move 1312 | . 238 233 500 341 Hop . | . . . . . Pick Up 64 | . 9 12 30 13 Fast Attach 8 | . 1 . 3 4 Attach 27 | . 2 4 3 18 Detach 3 | . . . . 3 Swap 40 | 3 4 13 18 2 Drop 64 | 3 4 13 26 18 Fire 240 | . 52 56 69 63 Melee . | . . . . . Ram . | . . . . . Kick . | . . . . . Crush . | . . . . . Escape Stasis . | . . . . . Rewire . | . . . . . Trap . | . . . . . Miscellaneous . | . . . . . Route ------- -11/Scrapyard -10/Materials (discovered 3 exits: *Mat x2 / [*Min]) -9/Materials -8/Materials -7/Factory (discovered 1 exit: [*Fac]) History --------- Turn | Location | Event 8 | -11/Scrapyard | Discovered new exit (range 0) 8 | -11/Scrapyard | Entered Materials 122 | -10/Materials | Discovered new exit (range 14) 170 | -10/Materials | Discovered new exit (range 9) 291 | -10/Materials | Discovered new exit (range 16) 300 | -10/Materials | Build established: Mutant 334 | -10/Materials | Core integrity fell below 50% 398 | -10/Materials | Entered another Materials area 398 | -9/Materials | Evolved 2 slots: Propulsion x2 455 | -9/Materials | Repaired Wheel 483 | -9/Materials | Repaired Com. Wheel 845 | -9/Materials | Build established: Scavenger-Mutant 907 | -9/Materials | Discovered new exit (range 5) 913 | -9/Materials | Entered another Materials area 913 | -8/Materials | Evolved 2 slots: Utility x2 1017 | -8/Materials | Garrison activated, responded to threat 1126 | -8/Materials | Met 7R-MNS 1773 | -8/Materials | Discovered new exit (range 16) 1797 | -8/Materials | Entered Factory 1797 | -7/Factory | Evolved 2 slots: Utility x2 1798 | -7/Factory | Caught up to 7R-MNS 1912 | -7/Factory | Found Prototype Device 2044 | -7/Factory | Discovered new exit (range 13) 2186 | -7/Factory | Identified Active Sensor Suite 2459 | -7/Factory | Fabricated O-24 Administrator (x1) 2465 | -7/Factory | Cargo convoy interrupted 2499 | -7/Factory | Core integrity fell below 50% 2537 | -7/Factory | System corruption reached 10% 2546 | -7/Factory | Core integrity fell below 20% 2579 | -7/Factory | Destroyed by L-41 Fighter with Backup Laser III Last Messages --------------- 02557_ Penetrated by Slug. 02558_ Destroyed Shock Rifle. 02558_ Imp. Heat Sink melted. 02558_ P-60 Hacker destroyed. 02558_ K-01 Serf collects debris. 02559_ The unstable cave ceiling collapses. 02560_ Slug penetrates Earth. 02561_ K-01 Serf collects debris. 02563_ Penetrated by Slug. 02565_ K-01 Serf collects debris. 02566_ Penetrated by Slug. 02566_ Arm. Treads destroyed. 02567_ K-01 Serf collects debris. 02572_ I-36 Angel sends out distress signal. 02572_ Penetrated by Slug. 02572_ Gatling Laser destroyed. 02572_ K-01 Serf collects debris. 02575_ K-01 Serf destroyed. 02575_ Slug penetrates H-55 Commando. 02579_ System corrupted: Gauss Rifle rejected. Map ----- +----------------------------------------------------+ | ?????????????????????????????????????????????????? | | ?????????????????????????????????????????????????? | | ?????????????????????????????????????????????????? | | ?????????????????????????????????????????????????? | | ?????????????????????????????????????????????????? | | ??????????????######?????????????????????????????? | | ??????????????# =? +?????????????????????????? | | ??????????????# = #?????????????????????????? | | ??????????????# """ #?????????????????????????? | | ??????????????# """ #?????????????????????????? | | ??????????????# """ #???#?????????????????????? | | ??????????????# #???# ????????????????????? | | ??????????????# ! "#???#%????????????????????? | | ??????????????# ""#???#+####+##+#???????????? | | ??????????????# ""#???#% ####????????? | | ??????????????# ""#???# + ?????????? | | ??????????????# ""#???# *! #??????????? | | ??????????????# T"#???# " %! #??????????? | | ??????????????# ! ""#???# "F*!= ##?????????? | | ??????????????# ""#???# " #?????????? | | ??????????????# ""#??## " #?????????? | | ??????????????# ""#??#; = #?????????? | | ??????????????# "#?? # ## ##?????????? | | ??????????????# ### ## !=!! lg #??????????? | | ################+#####/##;**% %* =k #= ^#??????? | | @=%==[[* # +??????? | | =[=!%%* # #??????? | | **%[%!%*% #? #??????? | | #+#####+########+#######;#%=!%% ;#?####??????? | | # ???????????????????######*h ##???????????? | | # ??????????????????????#; ##????????????? | | # "" ""????????????????????## #?????????????? | | # "" "" ???????????????????# #?????????????? | | # """ """ #??????????????????# #?????????????? | | # """ """ #??????????????????# #?????????????? | | # """ """ #??????????????????# #?????????????? | | # ???????????????????# #?????????????? | | ###???####???????????????????# #?????????????? | | ?????????????????????????????# #?????????????? | | ?????????????????????????????# #?????????????? | | ?????????????????????????????+ #?????????????? | | ?????????????????????????????# #?????????????? | | ?????????????????????????????? #?????????????? | | ?????????????????????????????? #?????????????? | | ?????????????????????????????? #?????????????? | | ?????????????????????????????? ??????????????? | | ?????????????????????????????? ????????????????? | | ?????????????????????????????????????????????????? | | ?????????????????????????????????????????????????? | | ?????????????????????????????????????????????????? | +----------------------------------------------------+ Best States ------------- Heat Dissipation 61 Coolant Potential 50 Energy Generation 16 Energy Capacity 290 Matter Stores 300 Matter Capacity 300 Sight Range 20 Robot Scan Range 15 Terrain Scan Density 10 Armor Coverage 600 Evasion (%) 44 Recoil Reduction 2 Item Schematics ----------------- Cargo Storage Unit | -9/Materials | Hacked Hcp. Matter Pod | -8/Materials | Scanalyzed Hcp. Battery | -8/Materials | Scanalyzed Spread Laser | -7/Factory | Hacked Hvy. Assault Cannon | -7/Factory | Scanalyzed Robot Schematics ------------------ O-24 Administrator | -7/Factory | Hacked Fabricated ------------ O-24 Administrator | x1 | -7/Factory Alien Tech Used ----------------- None Achievements -------------- None Challenges ------------ None Game ------ Seed ActiveGrapheneRefractor Manual? 0 Play Time 00:28:45 Cumulative 126.0 hours Start 2024.04.25 @ 12:21:10 End 2024.04.25 @ 12:49:14 Sessions 1 Manual Loads 0 Difficulty Rogue Special Mode None Game No. 245 Rogue 245 Adventurer 0 Explorer 0 Win Type - Total 0 Types 0/0/0/0/0/0/0/0/0 Lore% 33 Gallery% 46 Achievement% 32 Wizard Run 0 Options --------- Layout 1 ASCII 0 Keyboard 0 Movement Mouse Keybinds 0 Fullscreen 1 Font 24/Smallcaps Map View 50x40 Zoom Use 0% Tactical HUD 1 Map Filters NONE Filters NONE Steam 1 RUN: 535c8014-0eb4-441f-9497-337e1da9a281